[Event "*** SCC Grand Prix: Titled Tuesday Blitz"]
[Site "Chess.com"]
[Date "2020.07.14"]
[Round "2"]
[White "exoticprincess"]
[Black "DivyaDeshmukh23"]
[Result "1-0"]
[WhiteElo "2782"]
[BlackElo "2494"]
[TimeControl "180+1"]
[EndTime "10:18:13 PDT"]
[Termination "exoticprincess won by resignation"]

1. d4 {[%clk 0:03:00.9]} 1... Nf6 {[%clk 0:02:58]} 2. c4 {[%clk 0:02:56.4]} 2...
e6 {[%clk 0:02:57.9]} 3. Nc3 {[%clk 0:02:56.6]} 3... d5 {[%clk 0:02:57.8]} 4.
cxd5 {[%clk 0:02:56.5]} 4... exd5 {[%clk 0:02:58.7]} 5. Bf4 {[%clk 0:02:57.1]}
5... Bb4 {[%clk 0:02:46.9]} 6. e3 {[%clk 0:02:51.2]} 6... O-O {[%clk 0:02:37.1]}
7. Bd3 {[%clk 0:02:51.4]} 7... c5 {[%clk 0:02:36.6]} 8. Ne2 {[%clk 0:02:51.5]}
8... Nc6 {[%clk 0:02:35.5]} 9. O-O {[%clk 0:02:51.6]} 9... cxd4 {[%clk
0:02:25.1]} 10. exd4 {[%clk 0:02:51.7]} 10... Bg4 {[%clk 0:02:23.8]} 11. f3
{[%clk 0:02:52]} 11... Bh5 {[%clk 0:02:22.7]} 12. a3 {[%clk 0:02:52.5]} 12...
Bd6 {[%clk 0:02:20.3]} 13. Qd2 {[%clk 0:02:52.4]} 13... Bg6 {[%clk 0:02:18.4]}
14. Bxg6 {[%clk 0:02:52.6]} 14... hxg6 {[%clk 0:02:00.9]} 15. b4 {[%clk
0:02:52.5]} 15... a6 {[%clk 0:01:56.1]} 16. Rac1 {[%clk 0:02:52]} 16... Rc8
{[%clk 0:01:53]} 17. Rfd1 {[%clk 0:02:52]} 17... Ne7 {[%clk 0:01:50]} 18. Na4
{[%clk 0:02:48.9]} 18... Nf5 {[%clk 0:01:43.3]} 19. Nc5 {[%clk 0:02:47.8]} 19...
Bxf4 {[%clk 0:01:29.3]} 20. Nxf4 {[%clk 0:02:48.7]} 20... Rc7 {[%clk 0:01:19.3]}
21. a4 {[%clk 0:02:44.6]} 21... Qd6 {[%clk 0:01:14.3]} 22. a5 {[%clk 0:02:32.3]}
22... g5 {[%clk 0:01:08.7]} 23. Ne2 {[%clk 0:02:29.5]} 23... g4 {[%clk
0:01:08.9]} 24. Qf4 {[%clk 0:02:25.8]} 24... Qxf4 {[%clk 0:01:06.2]} 25. Nxf4
{[%clk 0:02:25.6]} 25... gxf3 {[%clk 0:01:07.1]} 26. gxf3 {[%clk 0:02:26.3]}
26... Re7 {[%clk 0:01:02.3]} 27. Kf2 {[%clk 0:02:25.2]} 27... Rfe8 {[%clk
0:00:58.9]} 28. Rb1 {[%clk 0:02:12.7]} 28... g5 {[%clk 0:00:46.2]} 29. Rg1
{[%clk 0:02:12.1]} 29... g4 {[%clk 0:00:35]} 30. fxg4 {[%clk 0:02:09.2]} 30...
Nxd4 {[%clk 0:00:32.5]} 31. Rgd1 {[%clk 0:01:51.5]} 31... Ne2 {[%clk 0:00:29.8]}
32. Nxd5 {[%clk 0:01:50.8]} 32... Nxg4+ {[%clk 0:00:25.3]} 33. Kf3 {[%clk
0:01:51.2]} 33... Nxh2+ {[%clk 0:00:16.9]} 34. Kg2 {[%clk 0:01:51.4]} 34... Re5
{[%clk 0:00:16.2]} 35. Nf6+ {[%clk 0:01:51.5]} 35... Kh8 {[%clk 0:00:10.1]} 36.
Nxe8 {[%clk 0:01:51.3]} 36... Ng4 {[%clk 0:00:10.7]} 37. Rd8 {[%clk 0:01:42.5]}
37... Kh7 {[%clk 0:00:09.4]} 38. Rh1+ {[%clk 0:01:41]} 38... Kg6 {[%clk
0:00:08.6]} 39. Rd6+ {[%clk 0:01:39.7]} 39... f6 {[%clk 0:00:07.7]} 40. Nxf6
{[%clk 0:01:36]} 40... Nxf6 {[%clk 0:00:06.9]} 41. Rf1 {[%clk 0:01:36.2]} 41...
Rg5+ {[%clk 0:00:06.8]} 42. Kf3 {[%clk 0:01:33.6]} 42... Nc3 {[%clk 0:00:05.9]}
43. Ke3 {[%clk 0:00:50.6]} 43... Nd5+ {[%clk 0:00:05.2]} 44. Kd2 {[%clk
0:00:49.9]} 44... Rg2+ {[%clk 0:00:04.9]} 45. Kc1 {[%clk 0:00:49.4]} 45... Rg4
{[%clk 0:00:04.3]} 46. Nd7 {[%clk 0:00:47.9]} 46... Rc4+ {[%clk 0:00:04.8]} 47.
Kb2 {[%clk 0:00:46.6]} 47... Rxb4+ {[%clk 0:00:04.9]} 48. Ka3 {[%clk 0:00:46.9]}
48... Rb5 {[%clk 0:00:04.1]} 49. Nxf6 {[%clk 0:00:46.9]} 49... Rxa5+ {[%clk
0:00:04.7]} 50. Kb3 {[%clk 0:00:47.4]} 50... Rb5+ {[%clk 0:00:05.6]} 51. Ka3
{[%clk 0:00:45.2]} 51... Ra5+ {[%clk 0:00:05.9]} 52. Kb2 {[%clk 0:00:45.5]}
52... Rb5+ {[%clk 0:00:06.4]} 53. Kc1 {[%clk 0:00:45.8]} 53... Ne3 {[%clk
0:00:06.1]} 54. Ng4+ {[%clk 0:00:44.4]} 1-0

[Event "*** SCC Grand Prix: Titled Tuesday Blitz"]
[Site "Chess.com"]
[Date "2020.07.14"]
[Round "2"]
[White "regular_legs"]
[Black "BilodeauA"]
[Result "0-1"]
[WhiteElo "2516"]
[BlackElo "2818"]
[TimeControl "180+1"]
[EndTime "10:18:15 PDT"]
[Termination "BilodeauA won by resignation"]

1. d4 {[%clk 0:03:00.7]} 1... d5 {[%clk 0:02:59.7]} 2. c4 {[%clk 0:03:00.9]}
2... dxc4 {[%clk 0:02:54.2]} 3. Nf3 {[%clk 0:03:00]} 3... a6 {[%clk 0:02:52.5]}
4. e3 {[%clk 0:02:59.4]} 4... Bg4 {[%clk 0:02:51.8]} 5. Bxc4 {[%clk 0:02:58.7]}
5... e6 {[%clk 0:02:50.6]} 6. O-O {[%clk 0:02:56.9]} 6... Nc6 {[%clk 0:02:50.9]}
7. b3 {[%clk 0:02:49.2]} 7... Nf6 {[%clk 0:02:50.9]} 8. Bb2 {[%clk 0:02:49.1]}
8... Bd6 {[%clk 0:02:51]} 9. h3 {[%clk 0:02:49.2]} 9... Bh5 {[%clk 0:02:50.9]}
10. Be2 {[%clk 0:02:49.3]} 10... O-O {[%clk 0:02:51.1]} 11. Nbd2 {[%clk
0:02:49.3]} 11... Nd5 {[%clk 0:02:50.7]} 12. Rc1 {[%clk 0:02:45.2]} 12... f5
{[%clk 0:02:50.9]} 13. Nc4 {[%clk 0:02:43.9]} 13... Nce7 {[%clk 0:02:50.4]} 14.
Nfe5 {[%clk 0:02:16.1]} 14... Bxe2 {[%clk 0:02:49.5]} 15. Qxe2 {[%clk 0:02:17]}
15... Nf6 {[%clk 0:02:43.7]} 16. Nd3 {[%clk 0:02:06.8]} 16... Ned5 {[%clk
0:02:40.6]} 17. Ba3 {[%clk 0:02:04.2]} 17... b5 {[%clk 0:02:33]} 18. Nxd6 {[%clk
0:01:52]} 18... cxd6 {[%clk 0:02:33.9]} 19. Rc6 {[%clk 0:01:52.1]} 19... Ne4
{[%clk 0:02:34.3]} 20. Rfc1 {[%clk 0:01:51.2]} 20... a5 {[%clk 0:02:24.1]} 21.
f3 {[%clk 0:01:46.5]} 21... Nec3 {[%clk 0:01:59.2]} 22. Qd2 {[%clk 0:01:25.8]}
22... b4 {[%clk 0:01:53.8]} 23. Bb2 {[%clk 0:01:25.8]} 23... Nxa2 {[%clk
0:01:50.5]} 24. Re1 {[%clk 0:01:25.9]} 24... Qd7 {[%clk 0:01:35]} 25. Rc2 {[%clk
0:01:19.8]} 25... a4 {[%clk 0:01:25.2]} 26. bxa4 {[%clk 0:01:15.8]} 26... Qxa4
{[%clk 0:01:23]} 27. e4 {[%clk 0:01:15.7]} 27... fxe4 {[%clk 0:01:21.6]} 28.
fxe4 {[%clk 0:01:16.6]} 28... b3 {[%clk 0:00:58.4]} 29. exd5 {[%clk 0:00:58.2]}
29... bxc2 {[%clk 0:00:58.6]} 30. dxe6 {[%clk 0:00:59.1]} 30... Rab8 {[%clk
0:00:59]} 31. d5 {[%clk 0:00:42.8]} 31... Qc4 {[%clk 0:00:24.1]} 32. e7 {[%clk
0:00:23.4]} 32... Rfe8 {[%clk 0:00:24.6]} 33. Bxg7 {[%clk 0:00:23.1]} 33... Qxd5
{[%clk 0:00:24.8]} 34. Be5 {[%clk 0:00:19]} 34... dxe5 {[%clk 0:00:12]} 35. Qg5+
{[%clk 0:00:18.6]} 35... Kf7 {[%clk 0:00:12.4]} 36. Qh5+ {[%clk 0:00:09.2]}
36... Kf6 {[%clk 0:00:09.9]} 37. Rf1+ {[%clk 0:00:08.4]} 37... Kxe7 {[%clk
0:00:09.7]} 38. Nxe5 {[%clk 0:00:07.3]} 38... c1=Q {[%clk 0:00:07.2]} 39. Qg5+
{[%clk 0:00:05.8]} 39... Qxg5 {[%clk 0:00:06.7]} 0-1

[Event "*** SCC Grand Prix: Titled Tuesday Blitz"]
[Site "Chess.com"]
[Date "2020.07.14"]
[Round "2"]
[White "MF1966Idrisov"]
[Black "Onegust"]
[Result "0-1"]
[WhiteElo "2316"]
[BlackElo "2610"]
[TimeControl "180+1"]
[EndTime "10:18:16 PDT"]
[Termination "Onegust won by resignation"]

1. Nf3 {[%clk 0:03:00.9]} 1... Nf6 {[%clk 0:02:59.4]} 2. b3 {[%clk 0:03:01.1]}
2... g6 {[%clk 0:02:55.2]} 3. Bb2 {[%clk 0:03:01.3]} 3... Bg7 {[%clk 0:02:55.9]}
4. c4 {[%clk 0:03:02]} 4... O-O {[%clk 0:02:56.2]} 5. g3 {[%clk 0:03:02.4]} 5...
d6 {[%clk 0:02:51.9]} 6. d4 {[%clk 0:03:01.9]} 6... c5 {[%clk 0:02:47]} 7. Bg2
{[%clk 0:03:01.3]} 7... cxd4 {[%clk 0:02:18.4]} 8. Nxd4 {[%clk 0:03:00.1]} 8...
Qa5+ {[%clk 0:02:18.4]} 9. Qd2 {[%clk 0:02:58.3]} 9... Qh5 {[%clk 0:02:13.8]}
10. Nc3 {[%clk 0:02:55.1]} 10... Bh3 {[%clk 0:02:05.7]} 11. Bxb7 {[%clk
0:02:52.2]} 11... Nbd7 {[%clk 0:02:04.1]} 12. Bxa8 {[%clk 0:02:47.2]} 12... Rxa8
{[%clk 0:02:05]} 13. O-O-O {[%clk 0:02:30.9]} 13... Nc5 {[%clk 0:01:56.7]} 14.
Kb1 {[%clk 0:02:24.5]} 14... a5 {[%clk 0:01:52.8]} 15. f3 {[%clk 0:02:17.7]}
15... Bd7 {[%clk 0:01:33.1]} 16. h4 {[%clk 0:02:15.8]} 16... Qe5 {[%clk
0:01:05.6]} 17. Rhg1 {[%clk 0:01:48.7]} 17... a4 {[%clk 0:00:42.9]} 18. b4
{[%clk 0:01:38]} 18... a3 {[%clk 0:00:41.1]} 19. Ba1 {[%clk 0:01:32]} 19... Rb8
{[%clk 0:00:35.9]} 20. Ndb5 {[%clk 0:01:22.6]} 20... Bf5+ {[%clk 0:00:28.3]} 21.
e4 {[%clk 0:01:20.1]} 21... Nfxe4 {[%clk 0:00:28.1]} 22. fxe4 {[%clk 0:01:10.7]}
22... Nxe4 {[%clk 0:00:27.8]} 23. Qf4 {[%clk 0:00:19.6]} 23... Nxc3+ {[%clk
0:00:24.6]} 24. Kc1 {[%clk 0:00:19.6]} 24... Qe2 {[%clk 0:00:11.6]} 25. Rd2
{[%clk 0:00:17.1]} 25... Nxa2+ {[%clk 0:00:11.2]} 26. Rxa2 {[%clk 0:00:15.3]}
26... Qxa2 {[%clk 0:00:10.9]} 27. Bxg7 {[%clk 0:00:14.4]} 27... Kxg7 {[%clk
0:00:10.9]} 28. Qd4+ {[%clk 0:00:14.3]} 28... Kg8 {[%clk 0:00:10.7]} 29. Qc3
{[%clk 0:00:14.4]} 29... Rc8 {[%clk 0:00:09.2]} 30. c5 {[%clk 0:00:12]} 30...
Qb1+ {[%clk 0:00:08.6]} 31. Kd2 {[%clk 0:00:11.5]} 31... Qxg1 {[%clk 0:00:09.2]}
32. c6 {[%clk 0:00:09.6]} 32... Qb6 {[%clk 0:00:08.5]} 33. Nd4 {[%clk
0:00:08.9]} 33... a2 {[%clk 0:00:08.6]} 34. Nxf5 {[%clk 0:00:08.4]} 34... gxf5
{[%clk 0:00:08.5]} 35. h5 {[%clk 0:00:08.3]} 35... Qxc6 {[%clk 0:00:06.9]} 36.
Qe3 {[%clk 0:00:08.3]} 36... Qc1+ {[%clk 0:00:06.3]} 37. Ke2 {[%clk 0:00:08]}
37... Qxe3+ {[%clk 0:00:07.2]} 38. Kxe3 {[%clk 0:00:08.4]} 38... a1=Q {[%clk
0:00:08.1]} 39. Kf4 {[%clk 0:00:08.9]} 39... Qe5+ {[%clk 0:00:08.4]} 40. Kg5
{[%clk 0:00:08.9]} 40... Rc4 {[%clk 0:00:09]} 0-1

[Event "*** SCC Grand Prix: Titled Tuesday Blitz"]
[Site "Chess.com"]
[Date "2020.07.14"]
[Round "2"]
[White "Joseacorrea"]
[Black "coalescenet"]
[Result "0-1"]
[WhiteElo "1943"]
[BlackElo "2345"]
[TimeControl "180+1"]
[EndTime "10:18:16 PDT"]
[Termination "coalescenet won on time"]

1. c4 {[%clk 0:03:00.9]} 1... e6 {[%clk 0:02:58.7]} 2. Nc3 {[%clk 0:03:00.9]}
2... d5 {[%clk 0:02:59.1]} 3. cxd5 {[%clk 0:03:01.8]} 3... exd5 {[%clk
0:02:59.6]} 4. d4 {[%clk 0:03:02.4]} 4... c6 {[%clk 0:03:00.2]} 5. Nf3 {[%clk
0:03:02.4]} 5... Bd6 {[%clk 0:03:00.5]} 6. g3 {[%clk 0:03:01.6]} 6... Bf5 {[%clk
0:02:58.9]} 7. Bg2 {[%clk 0:03:01.5]} 7... Nd7 {[%clk 0:02:58.8]} 8. Nh4 {[%clk
0:02:57.7]} 8... Bg4 {[%clk 0:02:55.6]} 9. h3 {[%clk 0:02:54.6]} 9... Bh5 {[%clk
0:02:55.2]} 10. Nf5 {[%clk 0:02:50.4]} 10... Bf8 {[%clk 0:02:55]} 11. Bf4 {[%clk
0:02:42.4]} 11... Nb6 {[%clk 0:02:45.9]} 12. O-O {[%clk 0:02:28.7]} 12... g5
{[%clk 0:02:35.3]} 13. Be3 {[%clk 0:02:06.8]} 13... Bg6 {[%clk 0:02:32.8]} 14.
g4 {[%clk 0:02:00.7]} 14... Qd7 {[%clk 0:02:17.8]} 15. Ng3 {[%clk 0:01:53.2]}
15... Be7 {[%clk 0:02:05.7]} 16. Qd2 {[%clk 0:01:50.2]} 16... Nc4 {[%clk
0:02:02.8]} 17. Qc1 {[%clk 0:01:46.5]} 17... Nxe3 {[%clk 0:01:56.1]} 18. fxe3
{[%clk 0:01:33.9]} 18... Nf6 {[%clk 0:01:52.4]} 19. Nf5 {[%clk 0:01:30.6]} 19...
h5 {[%clk 0:01:43.2]} 20. Nxe7 {[%clk 0:01:01.3]} 20... Qxe7 {[%clk 0:01:40.3]}
21. e4 {[%clk 0:00:53.8]} 21... Nxe4 {[%clk 0:01:35.6]} 22. Nxe4 {[%clk
0:00:47.2]} 22... dxe4 {[%clk 0:01:23.5]} 23. Qe3 {[%clk 0:00:37.5]} 23... hxg4
{[%clk 0:01:11.2]} 24. hxg4 {[%clk 0:00:38.4]} 24... O-O-O {[%clk 0:01:11.1]}
25. d5 {[%clk 0:00:31.4]} 25... Rxd5 {[%clk 0:01:11.1]} 26. Qxa7 {[%clk
0:00:29.2]} 26... Qc5+ {[%clk 0:01:10.9]} 27. Qxc5 {[%clk 0:00:26.2]} 27... Rxc5
{[%clk 0:01:11.4]} 28. Rac1 {[%clk 0:00:22.4]} 28... Rxc1 {[%clk 0:00:59.4]} 29.
Rxc1 {[%clk 0:00:23.3]} 29... Rd8 {[%clk 0:00:58.7]} 30. b4 {[%clk 0:00:15.3]}
30... Rd2 {[%clk 0:00:56.8]} 31. b5 {[%clk 0:00:15]} 31... Kc7 {[%clk
0:00:56.7]} 32. bxc6 {[%clk 0:00:15.1]} 32... bxc6 {[%clk 0:00:55.4]} 33. a3
{[%clk 0:00:12.5]} 33... Rxe2 {[%clk 0:00:44.7]} 34. Kf1 {[%clk 0:00:12.6]}
34... Ra2 {[%clk 0:00:43.4]} 35. Rc3 {[%clk 0:00:11.4]} 35... Kd6 {[%clk
0:00:36.6]} 36. Re3 {[%clk 0:00:10.1]} 36... Kd5 {[%clk 0:00:33.9]} 37. Rc3
{[%clk 0:00:10.3]} 37... c5 {[%clk 0:00:33.4]} 38. Rb3 {[%clk 0:00:07]} 38...
Kc4 {[%clk 0:00:32.1]} 39. Re3 {[%clk 0:00:06]} 39... Kd4 {[%clk 0:00:32]} 40.
Re2 {[%clk 0:00:02]} 40... Rxa3 {[%clk 0:00:28.7]} 41. Rd2+ {[%clk 0:00:01.8]}
41... Rd3 {[%clk 0:00:20.4]} 42. Re2 {[%clk 0:00:02.4]} 42... c4 {[%clk
0:00:19.7]} 43. Kf2 {[%clk 0:00:02.5]} 43... c3 {[%clk 0:00:19.9]} 44. Bf1
{[%clk 0:00:02.7]} 44... Rd2 {[%clk 0:00:18.8]} 45. Rxd2+ {[%clk 0:00:02.8]}
45... cxd2 {[%clk 0:00:19.7]} 46. Ke2 {[%clk 0:00:03.4]} 46... e3 {[%clk
0:00:20.1]} 47. Kd1 {[%clk 0:00:02.8]} 47... Be4 {[%clk 0:00:19.6]} 48. Be2
{[%clk 0:00:03.7]} 48... Kc3 {[%clk 0:00:18.8]} 0-1

[Event "*** SCC Grand Prix: Titled Tuesday Blitz"]
[Site "Chess.com"]
[Date "2020.07.14"]
[Round "2"]
[White "BikingBrian"]
[Black "tlomigtlis"]
[Result "1/2-1/2"]
[WhiteElo "2207"]
[BlackElo "2421"]
[TimeControl "180+1"]
[EndTime "10:18:18 PDT"]
[Termination "Game drawn - insufficient material"]

1. d4 {[%clk 0:03:00.9]} 1... d5 {[%clk 0:02:59.7]} 2. Bf4 {[%clk 0:03:00.8]}
2... c5 {[%clk 0:02:59.7]} 3. e3 {[%clk 0:03:00.7]} 3... Nc6 {[%clk 0:03:00.2]}
4. Nc3 {[%clk 0:03:00.9]} 4... a6 {[%clk 0:02:59]} 5. Nf3 {[%clk 0:02:54.6]}
5... Nf6 {[%clk 0:02:59.2]} 6. dxc5 {[%clk 0:02:54.1]} 6... e6 {[%clk
0:02:56.2]} 7. Na4 {[%clk 0:02:54.1]} 7... Bxc5 {[%clk 0:02:55.4]} 8. Nxc5
{[%clk 0:02:55]} 8... Qa5+ {[%clk 0:02:55.1]} 9. c3 {[%clk 0:02:55.2]} 9... Qxc5
{[%clk 0:02:55.4]} 10. Be2 {[%clk 0:02:55.6]} 10... O-O {[%clk 0:02:54.7]} 11.
O-O {[%clk 0:02:55.6]} 11... Qe7 {[%clk 0:02:53.3]} 12. Ne5 {[%clk 0:02:50]}
12... h6 {[%clk 0:02:50.6]} 13. c4 {[%clk 0:02:44.8]} 13... Rd8 {[%clk
0:02:46.3]} 14. Qc2 {[%clk 0:02:36.7]} 14... Nd7 {[%clk 0:02:12.1]} 15. Nxd7
{[%clk 0:02:29]} 15... Bxd7 {[%clk 0:02:09.5]} 16. cxd5 {[%clk 0:02:29.4]} 16...
Nb4 {[%clk 0:02:09.2]} 17. d6 {[%clk 0:02:11.2]} 17... Qf6 {[%clk 0:01:59.4]}
18. Qc3 {[%clk 0:01:59.4]} 18... Qxc3 {[%clk 0:01:57.8]} 19. bxc3 {[%clk
0:02:00.3]} 19... Nd5 {[%clk 0:01:58]} 20. c4 {[%clk 0:01:53.4]} 20... Nxf4
{[%clk 0:01:44.6]} 21. exf4 {[%clk 0:01:54.3]} 21... Rac8 {[%clk 0:01:36.6]} 22.
Rac1 {[%clk 0:01:44.7]} 22... Rc5 {[%clk 0:01:35.8]} 23. Bf3 {[%clk 0:01:39]}
23... Bc6 {[%clk 0:01:12.1]} 24. Bxc6 {[%clk 0:01:33.3]} 24... Rxc6 {[%clk
0:01:13]} 25. c5 {[%clk 0:01:31]} 25... b6 {[%clk 0:01:12.9]} 26. cxb6 {[%clk
0:01:26.2]} 26... Rxb6 {[%clk 0:01:13.8]} 27. Rc2 {[%clk 0:01:01.7]} 27... Rbxd6
{[%clk 0:01:12.4]} 28. g3 {[%clk 0:00:59.6]} 28... Rd2 {[%clk 0:01:08.2]} 29.
Rfc1 {[%clk 0:00:59.4]} 29... Kh7 {[%clk 0:01:01.6]} 30. Kg2 {[%clk 0:00:59.6]}
30... Kg6 {[%clk 0:01:00.9]} 31. Kf1 {[%clk 0:00:50.8]} 31... a5 {[%clk
0:00:43.5]} 32. Ke1 {[%clk 0:00:50.5]} 32... R2d4 {[%clk 0:00:43.1]} 33. Rc4
{[%clk 0:00:43.1]} 33... Kf6 {[%clk 0:00:35.6]} 34. a4 {[%clk 0:00:39]} 34...
Rxc4 {[%clk 0:00:33]} 35. Rxc4 {[%clk 0:00:38.8]} 35... Rd5 {[%clk 0:00:33.9]}
36. Ke2 {[%clk 0:00:37.1]} 36... Kf5 {[%clk 0:00:31.4]} 37. h3 {[%clk
0:00:34.6]} 37... g5 {[%clk 0:00:24]} 38. g4+ {[%clk 0:00:32.2]} 38... Kg6
{[%clk 0:00:23.4]} 39. fxg5 {[%clk 0:00:31.4]} 39... hxg5 {[%clk 0:00:24.3]} 40.
f4 {[%clk 0:00:29.4]} 40... f5 {[%clk 0:00:21]} 41. fxg5 {[%clk 0:00:27]} 41...
Kxg5 {[%clk 0:00:20.4]} 42. gxf5 {[%clk 0:00:26.3]} 42... exf5 {[%clk
0:00:21.3]} 43. h4+ {[%clk 0:00:26.1]} 43... Kh5 {[%clk 0:00:21.4]} 44. Kf3
{[%clk 0:00:25]} 44... Rd3+ {[%clk 0:00:20.4]} 45. Kf4 {[%clk 0:00:23.8]} 45...
Kxh4 {[%clk 0:00:13.6]} 46. Kxf5+ {[%clk 0:00:24]} 46... Kg3 {[%clk 0:00:13.7]}
47. Ke4 {[%clk 0:00:22.7]} 47... Rb3 {[%clk 0:00:12.7]} 48. Kd5 {[%clk
0:00:22.2]} 48... Rb8 {[%clk 0:00:11]} 49. Rc5 {[%clk 0:00:21.6]} 49... Ra8
{[%clk 0:00:10.9]} 50. Kc4 {[%clk 0:00:18.6]} 50... Kf4 {[%clk 0:00:11]} 51. Rc6
{[%clk 0:00:18]} 51... Ke4 {[%clk 0:00:10.7]} 52. Re6+ {[%clk 0:00:18.1]} 52...
Kf5 {[%clk 0:00:11]} 53. Rc6 {[%clk 0:00:18]} 53... Ke5 {[%clk 0:00:10.6]} 54.
Kb5 {[%clk 0:00:18.3]} 54... Kd5 {[%clk 0:00:10.1]} 55. Ra6 {[%clk 0:00:18.6]}
55... Rxa6 {[%clk 0:00:09.8]} 56. Kxa6 {[%clk 0:00:18.7]} 56... Kc6 {[%clk
0:00:10.7]} 57. Kxa5 {[%clk 0:00:19.1]} 57... Kb7 {[%clk 0:00:11.6]} 58. Kb5
{[%clk 0:00:19.5]} 58... Ka7 {[%clk 0:00:12.5]} 59. a5 {[%clk 0:00:19.9]} 59...
Kb7 {[%clk 0:00:13.4]} 60. a6+ {[%clk 0:00:20.4]} 60... Ka7 {[%clk 0:00:14.3]}
61. Kb4 {[%clk 0:00:20.4]} 61... Ka8 {[%clk 0:00:15.2]} 62. a7 {[%clk
0:00:20.3]} 62... Kxa7 {[%clk 0:00:16.1]} 1/2-1/2

[Event "*** SCC Grand Prix: Titled Tuesday Blitz"]
[Site "Chess.com"]
[Date "2020.07.14"]
[Round "2"]
[White "chesslh19"]
[Black "ditkin25"]
[Result "0-1"]
[WhiteElo "2147"]
[BlackElo "2410"]
[TimeControl "180+1"]
[EndTime "10:18:18 PDT"]
[Termination "ditkin25 won on time"]

1. e4 {[%clk 0:03:00.9]} 1... c6 {[%clk 0:02:59.8]} 2. d4 {[%clk 0:03:00.4]}
2... d5 {[%clk 0:03:00.1]} 3. Nd2 {[%clk 0:03:01.1]} 3... dxe4 {[%clk
0:02:59.5]} 4. Nxe4 {[%clk 0:03:02]} 4... Bf5 {[%clk 0:02:59.9]} 5. Ng3 {[%clk
0:03:02.1]} 5... Bg6 {[%clk 0:03:00.4]} 6. h4 {[%clk 0:03:02.7]} 6... h6 {[%clk
0:03:00.8]} 7. Nf3 {[%clk 0:03:03.2]} 7... e6 {[%clk 0:03:01.2]} 8. Ne5 {[%clk
0:03:02.6]} 8... Bh7 {[%clk 0:03:01.6]} 9. Bc4 {[%clk 0:03:00.6]} 9... Nd7
{[%clk 0:02:55.9]} 10. Qe2 {[%clk 0:02:58]} 10... Nxe5 {[%clk 0:02:54.1]} 11.
dxe5 {[%clk 0:02:57.5]} 11... Ne7 {[%clk 0:02:52.7]} 12. Bd2 {[%clk 0:02:36.8]}
12... Nd5 {[%clk 0:02:48.9]} 13. O-O-O {[%clk 0:02:33.4]} 13... Qc7 {[%clk
0:02:30.1]} 14. f4 {[%clk 0:02:28.3]} 14... O-O-O {[%clk 0:02:24.1]} 15. Ne4
{[%clk 0:02:20.7]} 15... Kb8 {[%clk 0:02:05.6]} 16. Kb1 {[%clk 0:02:12.1]} 16...
Bb4 {[%clk 0:01:56.8]} 17. Bxb4 {[%clk 0:01:49.3]} 17... Nxb4 {[%clk 0:01:57.7]}
18. a3 {[%clk 0:01:44.4]} 18... Nd5 {[%clk 0:01:52.2]} 19. g3 {[%clk 0:01:38.9]}
19... Bxe4 {[%clk 0:01:37.2]} 20. Qxe4 {[%clk 0:01:38.2]} 20... Qb6 {[%clk
0:01:37.9]} 21. Bxd5 {[%clk 0:01:24.4]} 21... cxd5 {[%clk 0:01:38.8]} 22. Qd4
{[%clk 0:01:19.6]} 22... Qb5 {[%clk 0:01:32.1]} 23. Rd3 {[%clk 0:01:15.4]} 23...
Rc8 {[%clk 0:01:32.1]} 24. Rhd1 {[%clk 0:01:05.2]} 24... Rc4 {[%clk 0:01:30.1]}
25. Qf2 {[%clk 0:00:59.2]} 25... Rhc8 {[%clk 0:01:30.3]} 26. R1d2 {[%clk
0:00:56.1]} 26... Rxc2 {[%clk 0:01:26.2]} 27. Rxc2 {[%clk 0:00:42.9]} 27... Qxd3
{[%clk 0:01:26.1]} 28. Qd2 {[%clk 0:00:39.9]} 28... Qxc2+ {[%clk 0:01:17.1]} 29.
Qxc2 {[%clk 0:00:40.2]} 29... Rxc2 {[%clk 0:01:18]} 30. Kxc2 {[%clk 0:00:40.8]}
30... Kc7 {[%clk 0:01:17.7]} 31. Kd3 {[%clk 0:00:40.5]} 31... Kc6 {[%clk
0:01:17.6]} 32. Kd4 {[%clk 0:00:40.3]} 32... h5 {[%clk 0:00:50.1]} 33. b3 {[%clk
0:00:39.4]} 33... g6 {[%clk 0:00:44.1]} 34. Kd3 {[%clk 0:00:23.9]} 34... Kc5
{[%clk 0:00:29.2]} 35. Kc3 {[%clk 0:00:15.4]} 35... d4+ {[%clk 0:00:24.3]} 36.
Kd3 {[%clk 0:00:15.6]} 36... Kd5 {[%clk 0:00:24.7]} 37. b4 {[%clk 0:00:12.1]}
37... b5 {[%clk 0:00:24]} 38. Ke2 {[%clk 0:00:09.2]} 38... Kc4 {[%clk
0:00:22.7]} 39. Kf3 {[%clk 0:00:08.2]} 39... d3 {[%clk 0:00:21.8]} 40. g4 {[%clk
0:00:05.6]} 40... Kc3 {[%clk 0:00:17.8]} 41. f5 {[%clk 0:00:03.5]} 41... d2
{[%clk 0:00:15]} 0-1